Cogmind - Beta 13 --- EXPLORER MODE // 2024.03.31 @ 12:35:01 Player: TheWritersMind Result: Core destroyed Performance ------------- Evolutions (5) 2500 Regions Visited (12) 2400 Robots Destroyed (238) 1190 Value Destroyed (9175) 9175 Prototype IDs (1) 20 Alien Tech Used (0) 0 Bonus (3012) 3012 TOTAL SCORE: 18297 Bonus ------- High Alert Combat Kills 1812 Entered Garrisons 200 Used RIF Installer 500 MAIN.C Attacked Warlord 500 Cogmind --------- Core Integrity 0/1000 Matter 179/300 Energy 204/580 System Corruption 1% Temperature Critical (591) Movement Rolling (165) Ox5 Location -5/Warlord Parts ------- > --- POWER (3) -------- Light Angular Momentum Engine Neutrino Core Neutrino Core > --- PROPULSION (4) --- Wheel Compact Wheel > --- UTILITY (6) ------ Improved Cooling System Huge Storage Unit Improved Terrain Scan Processor Core Analyzer Advanced ECM Suite > --- WEAPON (5) ------- Heavy Laser Plasma Rifle Proton Cannon KE Penetrator > --- INVENTORY (25) --- Improved Ion Engine Improved Deuterium Engine Micro Nuclear Core Light Fission Core Light Fission Core Fusion Compressor Wheel Wheel Wheel Wheel Advanced Heat Sink Advanced Weight Redist. System Sensor Array Recoil Stabilizer Weapon Shielding Improved Heavy Armor Plating Improved Focal Shield Advanced Shield Generator Hacking Suite Gauss Rifle Magnetic Acceleration Cannon Heavy Linear Accelerator Remote Datajack Peak State ------------ > --- POWER ------------ Improved Ion Engine Improved Deuterium Engine Light Angular Momentum Engine > --- PROPULSION ------- Improved Titanium Leg Flexi-carbon Leg Compact Wheel Compact Wheel > --- UTILITY ---------- Improved Cooling System Huge Storage Unit Improved Terrain Scan Processor Improved Weapon Cycler Advanced Shield Generator Improved System Guard > --- WEAPON ----------- Plasma Rifle Heavy Machine Gun KE Penetrator Heavy Linear Accelerator > --- INVENTORY -------- Improved Deuterium Engine Micro Nuclear Core Fusion Compressor Armored Leg Improved Cooling System Sensor Array Recoil Stabilizer Advanced ECM Suite Weapon Shielding Hardened Light Armor Plating Improved Heavy Armor Plating Improved Focal Shield Advanced Shield Generator Advanced Shield Generator Tesla Rifle Plasma Rifle Plasma Rifle Plasma Rifle Plasma Rifle Heavy Machine Gun Magnetic Acceleration Cannon Remote Datajack Mining Claw [Rating: 91] Favorites ----------- Power Improved Deuterium Engine Engine Improved Deuterium Engine Power Core Light Nuclear Core Propulsion Light Treads Treads Light Treads Leg Flexi-carbon Leg Wheel Compact Wheel Hover Unit Antigrav System Utility Huge Storage Unit Device Improved Cooling System Storage Huge Storage Unit Processor Targeting Computer Hackware Relay Coupler [NC] Protection Core Shielding Weapon KE Penetrator Energy Gun Plasma Rifle Energy Cannon Proton Cannon Ballistic Gun KE Penetrator Ballistic Cannon Magnetic Acceleration Cannon Special Weapon Mining Laser Build | -11 -10 -9 -8 -7 -7 -7 -7 -6 -6 -5 -5 -5 ------- Run | Yrd Mat Mat Mat Fac Gar Fac Sto Fac Ext Fac Upp War Slots Evolved 11 | . 1 2 2 2 . . . 2 . 2 . . Power 2 | . . . 1 . . . . 1 . . . . Propulsion 2 | . . 1 1 . . . . . . . . . Utility 4 | . . 1 . 1 . . . 1 . 1 . . Weapon 3 | . 1 . . 1 . . . . . 1 . . Parts Attached 202 | 9 10 6 12 10 48 23 3 5 14 57 5 . Power 55 | 2 3 . 4 2 16 4 . 1 4 19 . . Engine 31 | 2 3 . 3 1 9 3 . . 3 7 . . Core 24 | . . . 1 1 7 1 . 1 1 12 . . Reactor . | . . . . . . . . . . . . . Propulsion 63 | 2 3 1 4 1 16 8 3 . 5 20 . . Treads 35 | . 2 1 3 1 16 8 3 . 1 . . . Leg 11 | 2 1 . 1 . . . . . . 7 . . Wheel 16 | . . . . . . . . . 4 12 . . Hover 1 | . . . . . . . . . . 1 . . Flight . | . . . . . . . . . . . . . Utility 37 | 3 2 2 1 3 7 5 . 2 2 9 1 . Device 23 | 1 1 1 . 2 5 3 . . 2 7 1 . Storage 1 | . 1 . . . . . . . . . . . Processor 7 | 1 . . 1 1 1 1 . 1 . 1 . . Hackware 2 | . . . . . 1 . . 1 . . . . Protection 4 | 1 . 1 . . . 1 . . . 1 . . Artifact . | . . . . . . . . . . . . . Weapon 47 | 2 2 3 3 4 9 6 . 2 3 9 4 . Energy Gun 17 | . . 1 2 1 2 . . 2 1 6 2 . Energy Cannon 2 | . . . . . . 1 . . . . 1 . Ballistic Gun 24 | 2 1 2 1 3 6 5 . . 1 3 . . Ballistic Cannon 2 | . . . . . 1 . . . 1 . . . Launcher . | . . . . . . . . . . . . . Special Weapon 2 | . 1 . . . . . . . . . 1 . Impact Weapon . | . . . . . . . . . . . . . Slashing Weapon . | . . . . . . . . . . . . . Piercing Weapon . | . . . . . . . . . . . . . Special Melee Weapon . | . . . . . . . . . . . . . Unidentified Prototypes 1 | . 1 . . . . . . . . . . . Parts Lost 38 | . . 1 . . 5 . . . 12 16 . 4 Power 8 | . . . . . 1 . . . 4 3 . . Propulsion 14 | . . . . . 2 . . . 4 6 . 2 Utility 7 | . . . . . 2 . . . 1 3 . 1 Weapon 9 | . . 1 . . . . . . 3 4 . 1 Highest Loss Streak 11 | . . 1 . . 1 . . . 11 6 . 3 To Critical Strikes 1 | . . . . . . . . . . 1 . . Average Slot Usage (%) 95 | . 92 99 91 100 98 100 100 100 74 91 99 96 Engine 11 | . 11 10 15 7 11 14 14 12 10 9 5 5 Core 3 | . . . . 7 2 . . 6 3 6 11 11 Treads 20 | . 18 30 25 28 27 28 28 25 13 . . . Leg 1 | . 5 . . . . . . . . 5 . . Wheel 3 | . . . . . . . . . . 14 22 18 Device 9 | . 8 10 3 5 10 11 7 4 3 14 16 16 Storage 6 | . 6 10 8 7 7 7 7 6 6 5 5 5 Processor 8 | . 3 . 4 12 8 7 14 18 14 9 11 11 Protection 1 | . 5 10 8 3 . 1 . . . . . . Energy Gun 8 | . . 9 7 9 10 . . 6 9 14 16 15 Ballistic Gun 14 | . 20 18 16 18 12 26 28 18 6 7 5 5 Ballistic Cannon 1 | . . . . . 4 . . . 1 1 . . Naked Turns . | . . . . . . . . . . . . . Heaviest Build 155 | 9 93 96 103 108 131 132 126 131 145 155 152 152 Greatest Support 110 | 20 46 69 92 89 110 93 82 82 82 64 52 52 Greatest Overweight (x) 44 | . 2 1 1 1 1 1 1 1 44 43 2 3 Average Overweight (x) 1 | . . 1 1 1 1 1 1 1 5 3 2 2 Largest Inventory Capacity 25 | 5 25 25 25 25 25 25 25 25 25 25 25 25 Average Capacity 24 | 5 16 25 25 25 25 25 25 25 25 25 25 25 Most Carried 25 | 5 9 15 20 25 25 25 25 24 24 25 25 25 Average Carried 21 | 3 6 10 14 21 24 24 24 23 20 22 24 25 Final Capacity 25 | 5 25 25 25 25 25 25 25 25 25 25 25 25 Final Carried 25 | 5 9 15 19 25 24 25 25 24 17 25 25 25 Class Distribution -------------------- 58% | Scavenger-Gunner 10% | Scavenger-Tank 10% | Hacker-Skirmisher 6% | Hacker-Mutant 5% | Hacker-Tank 5% | Hacker-Gunner Dominant Class ---------------- Hacker-Mutant | -10/Materials Hacker-Skirmisher | -9/Materials Hacker-Tank | -8/Materials Scavenger-Gunner | -7/Factory Scavenger-Gunner | -7/Garrison Scavenger-Gunner | -7/Factory Scavenger-Gunner | -7/Storage Scavenger-Gunner | -6/Factory Hacker-Gunner | -6/Extension Scavenger-Tank | -5/Factory Scavenger-Gunner | -5/Upper Caves Scavenger-Gunner | -5/Warlord Resources | -11 -10 -9 -8 -7 -7 -7 -7 -6 -6 -5 -5 -5 ----------- Run | Yrd Mat Mat Mat Fac Gar Fac Sto Fac Ext Fac Upp War Matter Collected 6680 | 275 43 235 366 72 1729 964 584 138 509 1667 92 6 Remotely . | . . . . . . . . . . . . . Salvage Created 11472 | 42 208 441 762 114 2019 1214 1065 267 1097 3604 278 361 Parts 543 | 4 13 38 40 8 111 67 63 12 41 128 9 9 Haulers Intercepted 2 | . . . . . . . 2 . . . . . Recyclers Shooed 4 | . . . . . . . . . 2 2 . . Parts Field Recycled . | . . . . . . . . . . . . . Retrieved Matter . | . . . . . . . . . . . . . Parts Self-Destructed . | . . . . . . . . . . . . . Prevented . | . . . . . . . . . . . . . Kills | -11 -10 -9 -8 -7 -7 -7 -7 -6 -6 -5 -5 -5 ------- Run | Yrd Mat Mat Mat Fac Gar Fac Sto Fac Ext Fac Upp War Combat Hostiles Destroyed 177 | 1 6 11 12 2 50 18 15 6 5 42 5 4 Guns 161 | 1 6 11 12 2 49 16 15 6 5 34 3 1 Cannons 9 | . . . . . 1 2 . . . 4 1 1 AOE 1 | . . . . . . . . . . 1 . . Classes Destroyed 19 | 1 1 4 2 1 3 1 1 . . 4 . 1 Worker 20 | . . 1 . . . 3 2 . 2 12 . . Builder 8 | . . . . . . 2 3 . 2 1 . . Tunneler 1 | . . . . . . . . . . 1 . . Hauler 2 | . . . . . . . 2 . . . . . Recycler 16 | . . . 2 . . 2 . . 5 7 . . Mechanic 1 | . . . . . . . . . . 1 . . Watcher 13 | . . 1 3 . . 3 1 . 1 4 . . Swarmer 39 | . 2 5 4 . 14 3 . 3 . 7 1 . Cutter 2 | . . . . . 2 . . . . . . . Grunt 55 | 1 4 4 3 . 11 6 8 3 . 12 3 . Brawler 5 | . . . 2 . 2 . . . . 1 . . Duelist 7 | . . 1 1 . 3 1 . . . 1 . . Protector 1 | . . . . . . . . . . 1 . . Sentry 31 | . . 1 2 1 9 4 4 . 2 7 1 . Hunter 13 | . . . . 1 4 2 2 . 1 3 . . Programmer 14 | . . . . . 2 2 1 . . 9 . . Heavy 1 | . . . . . . . . . . 1 . . Behemoth 5 | . . . . . 3 . . . 2 . . . Wizard 1 | . . . . . . . . . . . . 1 Marauder 2 | . . . . . . . . . . . . 2 Mutant 1 | . . . . . . . . . . . . 1 Best Kill Streak 12 | 1 2 4 4 1 4 9 8 3 4 12 3 1 Combat Bots Only 6 | 1 2 3 3 1 4 6 5 3 2 6 3 1 Max Kills in Single Turn 3 | 1 1 2 2 1 2 3 3 2 2 3 1 1 Gunslinging 1 | . . . . . 1 . 1 1 . 1 . . Exploded 1 | . . . . . . . . . . 1 . . Melee . | . . . . . . . . . . . . . Uniques/NPCs Destroyed . | . . . . . . . . . . . . . Combat | -11 -10 -9 -8 -7 -7 -7 -7 -6 -6 -5 -5 -5 -------- Run | Yrd Mat Mat Mat Fac Gar Fac Sto Fac Ext Fac Upp War Hostile Shots Fired 1439 | 4 26 61 22 31 466 141 108 14 152 253 2 159 Missed 438 | . 11 20 6 14 128 55 49 1 44 72 1 37 Damage Taken 9049 | 27 101 342 178 64 2283 591 324 137 1287 2450 10 1255 Core 1924 | . 26 42 21 10 441 117 37 21 84 497 . 628 Absorbed by Shields 1751 | . . . . 27 638 232 . . . 559 4 291 Redirected to Shielding 42 | . 2 8 4 . . 28 . . . . . . Ignored by Resistances 6213 | 17 66 217 106 63 2026 469 221 85 767 1545 8 623 Regen/Repaired (Parts) 328 | . 24 . 107 . . . . . . 197 . . Core Remaining (%) 79 | 100 89 89 96 . . . 13 . 87 . . . Volleys Fired 476 | 4 19 31 44 8 111 41 32 8 41 109 5 23 Largest 5 | 2 3 3 3 4 4 4 4 4 4 5 5 5 Hottest 333 | 40 140 160 80 168 231 171 124 186 210 323 333 327 Shots Fired 1709 | 8 37 86 129 32 432 164 128 32 102 445 23 91 Gun 1595 | 8 35 85 129 32 384 157 128 32 89 427 21 68 Cannon 111 | . . . . . 48 7 . . 13 18 2 23 Launcher . | . . . . . . . . . . . . . Special 3 | . 2 1 . . . . . . . . . . Kinetic 1014 | 8 35 54 88 22 263 157 128 28 48 158 5 20 Thermal 547 | . 2 1 . 2 147 7 . 4 54 266 16 48 Explosive . | . . . . . . . . . . . . . Electromagnetic 148 | . . 31 41 8 22 . . . . 21 2 23 Robot Hit Streak 75 | 8 16 16 19 17 75 54 57 14 24 33 8 24 Robot Miss Streak 5 | . 2 5 4 1 4 1 2 2 1 4 1 1 Penetration Max 1 | . . . . . . 1 1 . 1 1 . . Secondary Targets 25 | . 1 4 1 . 8 3 1 1 . 5 1 . Max Gunslinging Chain 1 | . 1 1 1 . 1 1 1 1 . 1 1 . Shots Hit Robots 1183 | 8 27 56 86 21 264 111 91 22 90 316 14 77 Core Hits 530 | 2 12 21 35 9 161 46 40 12 38 130 7 17 Critical Kills 10 | . . . . . 2 2 2 . 1 2 1 . Critical Parts Destroyed 10 | . . . . . 3 4 1 . 1 . . 1 Critical Strikes 63 | . . 1 2 1 8 6 3 . 10 28 1 3 Burn 29 | . . . . . 1 . . . 7 19 . 2 Destroy 21 | . . . . . 6 6 3 . 2 2 1 1 Blast 7 | . . . . . 1 . . . 1 5 . . Corrupt 6 | . . 1 2 1 . . . . . 2 . . Melee Attacks . | . . . . . . . . . . . . . Impact . | . . . . . . . . . . . . . Slashing . | . . . . . . . . . . . . . Piercing . | . . . . . . . . . . . . . Sneak Attacks . | . . . . . . . . . . . . . Combat Hostiles . | . . . . . . . . . . . . . Follow-up Attacks . | . . . . . . . . . . . . . Damage Inflicted 27179 | 86 279 707 1182 288 6323 2592 2295 452 2327 8895 329 1424 Guns 23960 | 86 279 707 1182 288 5797 2353 2295 452 1603 7431 266 1221 Cannons 2559 | . . . . . 377 150 . . 724 1042 63 203 Explosions 574 | . . . . . 149 89 . . . 336 . . Melee . | . . . . . . . . . . . . . Ramming 86 | . . . . . . . . . . 86 . . Kinetic 15192 | 86 279 435 817 173 2922 2353 2295 418 1411 3538 46 419 Thermal 10180 | . . . . 45 3187 239 . 34 916 4737 220 802 Explosive 217 | . . . . . . . . . . 217 . . Electromagnetic 1504 | . . 272 365 70 214 . . . . 317 63 203 Impact . | . . . . . . . . . . . . . Slashing . | . . . . . . . . . . . . . Piercing . | . . . . . . . . . . . . . Highest Corruption 15 | . . . . . 5 5 . . . 15 15 15 Average Corruption 9 | . . . . . 4 5 . . . 12 15 11 Corruption Purged . | . . . . . . . . . . . . . Corruption Blocked 9 | . . . . . . . . . . . . 9 Effects 113 | . . . . . 6 37 . . . 46 22 2 Message Errors 27 | . . . . . 2 7 . . . 7 10 1 Matter Fused 19 | . . . . . 3 2 . . . 10 3 1 Heat Flow Errors 13 | . . . . . . 6 . . . 5 2 . Energy Discharges 10 | . . . . . 1 2 . . . 6 1 . Parts Rejected 1 | . . . . . . 1 . . . . . . Parts Fused 2 | . . . . . . 1 . . . 1 . . Data Loss (minor) 12 | . . . . . . 5 . . . 6 1 . Data Loss (major) 6 | . . . . . . 4 . . . . 2 . Misfires 6 | . . . . . . 3 . . . 2 1 . Alerts 9 | . . . . . . 4 . . . 3 2 . Weapon Failures 8 | . . . . . . 2 . . . 6 . . Overload Shots . | . . . . . . . . . . . . . Overflow Damage 438 | . . . . . . 3 . . 134 301 . . Projectiles 319 | . . . . . . . . . 134 185 . . Explosions 87 | . . . . . . 3 . . . 84 . . Melee 32 | . . . . . . . . . . 32 . . Knockbacks 10 | . . . . . 4 . . . 4 2 . . Impact . | . . . . . . . . . . . . . Kinetic 10 | . . . . . 4 . . . 4 2 . . Secondary . | . . . . . . . . . . . . . Self-Inflicted Damage 250 | . . . . . 11 67 . . . 172 . . Shots 5 | . . . . . 1 2 . . . 2 . . Rammed 2 | . . . . . . . . . . 2 . . Targets Rammed 2 | . . . . . . . . . . 2 . . Kicked . | . . . . . . . . . . . . . Crushed . | . . . . . . . . . . . . . Highest Temperature 718 | 12 45 160 151 210 718 575 18 132 694 607 402 705 Average Temperature 180 | 7 14 43 43 73 215 180 8 35 226 189 135 312 Received Heat Transfer 2046 | 24 84 174 45 16 598 195 135 72 282 397 . 24 Effects 202 | . . . . . 71 14 . . 26 60 2 29 Shutdowns 70 | . . . . . 21 4 . . 5 25 1 14 Energy Bleed 18 | . . . . . 8 1 . . 2 5 . 2 Interference 39 | . . . . . 14 . . . 3 17 . 5 Matter Decay 13 | . . . . . 5 . . . 5 1 . 2 Short Circuit 19 | . . . . . 6 1 . . 6 5 . 1 Damage (minor) 13 | . . . . . 6 . . . 2 3 1 1 Damage (major) 22 | . . . . . 9 7 . . 3 2 . 1 Damage (core) 8 | . . . . . 2 1 . . . 2 . 3 Siege Activations . | . . . . . . . . . . . . . Robots Corrupted 1 | . . . . . . . . . . . . 1 Combat Hostiles 1 | . . . . . . . . . . . . 1 Parts Fried 5 | . . 2 . 1 . . . . . . . 2 Impact Corruptions 1 | . . . . . . . . . . 1 . . Robots Melted 5 | . . . . . . . . . . 3 1 1 Combat Hostiles 5 | . . . . . . . . . . 3 1 1 Parts Melted 78 | . . . . . 4 . . . 8 52 3 11 Heat Transferred 23804 | . . . . 100 6540 372 . 87 2736 11362 500 2107 Parts Sabotaged . | . . . . . . . . . . . . . Parts Stolen . | . . . . . . . . . . . . . Parts Stripped . | . . . . . . . . . . . . . Power Chain Reactions 1 | . . . . . 1 . . . . . . . Alert | -11 -10 -9 -8 -7 -7 -7 -7 -6 -6 -5 -5 -5 ------- Run | Yrd Mat Mat Mat Fac Gar Fac Sto Fac Ext Fac Upp War Peak Influence 3387 | 20 181 272 217 45 3387 1414 581 325 79 558 . . Initial 1320 | . 9 7 81 9 16 1320 344 183 12 28 . . Average 738 | 12 48 77 102 16 1478 1163 425 173 19 274 . . Maximum Alert Level 5 | . . 1 1 . 5 4 2 1 . 2 . . Low Security (%) 38 | 100 100 83 99 100 8 . . 69 100 21 . . Level 1 13 | . . 16 . . 2 . 46 30 . 60 . . Level 2 12 | . . . . . 20 . 53 . . 18 . . Level 3 7 | . . . . . 11 32 . . . . . . Level 4 12 | . . . . . 15 67 . . . . . . Level 5 15 | . . . . . 41 . . . . . . . High Security . | . . . . . . . . . . . . . Max Security . | . . . . . . . . . . . . . Squads Dispatched 33 | . . 2 3 1 . 4 6 1 . 16 . . Investigation 6 | . . . . . . 2 2 1 . 1 . . Extermination 5 | . . . . . . 1 1 . . 3 . . Reinforcement 13 | . . 2 . 1 . 1 3 . . 6 . . Assault . | . . . . . . . . . . . . . Garrison 9 | . . . 3 . . . . . . 6 . . Intercept . | . . . . . . . . . . . . . Searches Triggered . | . . . . . . . . . . . . . Construction Impeded 2 | . . . . . . . 1 . . 1 . . Haulers Reinforced 3 | . . . . . . . 1 . . 2 . . Active Scanning Responses . | . . . . . . . . . . . . . Cargo Convoy Interrupts 1 | . . . . . . . . . . 1 . . Stealth | -11 -10 -9 -8 -7 -7 -7 -7 -6 -6 -5 -5 -5 --------- Run | Yrd Mat Mat Mat Fac Gar Fac Sto Fac Ext Fac Upp War Distress Signals 12 | . 1 3 3 . . 1 1 . 1 2 . . Communications Jammed . | . . . . . . . . . . . . . Distress Signals . | . . . . . . . . . . . . . Times Spotted 232 | 1 10 15 20 4 48 23 19 6 10 62 4 10 Peak Tracking Total 7 | 1 4 4 3 1 5 4 4 3 4 7 3 6 Tactical Retreats 12 | . . 1 1 . 4 . . . . 6 . . Traps | -11 -10 -9 -8 -7 -7 -7 -7 -6 -6 -5 -5 -5 ------- Run | Yrd Mat Mat Mat Fac Gar Fac Sto Fac Ext Fac Upp War Traps Triggered 18 | . 2 . 1 . 9 2 1 . . 3 . . Indirectly . | . . . . . . . . . . . . . Trap Hack Attempts . | . . . . . . . . . . . . . Triggered . | . . . . . . . . . . . . . Disarmed . | . . . . . . . . . . . . . Reprogrammed 4 | . 4 . . . . . . . . . . . Reused 1 | . 1 . . . . . . . . . . . Traps Extracted . | . . . . . . . . . . . . . Installed . | . . . . . . . . . . . . . Triggered 2 | . 1 . . . . . . . . . . 1 Machines | -11 -10 -9 -8 -7 -7 -7 -7 -6 -6 -5 -5 -5 ---------- Run | Yrd Mat Mat Mat Fac Gar Fac Sto Fac Ext Fac Upp War Machines Disabled 23 | . . . . . 3 4 1 . 2 12 . 1 Max in Single Turn 5 | . . . . . 1 4 1 . 1 5 . 1 Garrison Relay 2 | . . . . . 2 . . . . . . . Machines Repaired . | . . . . . . . . . . . . . Machines Dismantled . | . . . . . . . . . . . . . Machines Sabotaged . | . . . . . . . . . . . . . Overloaded Fab Kills . | . . . . . . . . . . . . . Hacking | -11 -10 -9 -8 -7 -7 -7 -7 -6 -6 -5 -5 -5 --------- Run | Yrd Mat Mat Mat Fac Gar Fac Sto Fac Ext Fac Upp War Machines Accessed 30 | . 3 . 4 5 5 5 1 2 1 4 . . Terminals 18 | . 2 . 1 3 5 2 1 2 1 1 . . Fabricators 1 | . . . . . . 1 . . . . . . Repair Stations 5 | . 1 . 2 . . 1 . . . 1 . . Recycling Units 3 | . . . 1 1 . 1 . . . . . . Scanalyzers 1 | . . . . . . . . . . 1 . . Garrison Access 2 | . . . . 1 . . . . . 1 . . Total Hacks 73 | . 7 . 17 7 6 19 2 5 1 9 . . Successful 59 | . 6 . 15 7 3 13 1 4 1 9 . . Failed 14 | . 1 . 2 . 3 6 1 1 . . . . Catastrophic 1 | . . . 1 . . . . . . . . . Database Lockouts . | . . . . . . . . . . . . . Manual 3 | . . . . . . . . 3 . . . . Terminals 34 | . 5 . 4 5 6 5 2 5 1 1 . . Fabricators 2 | . . . . . . 2 . . . . . . Repair Stations 20 | . 2 . 10 . . 4 . . . 4 . . Recycling Units 12 | . . . 3 1 . 8 . . . . . . Scanalyzers 2 | . . . . . . . . . . 2 . . Garrison Access 3 | . . . . 1 . . . . . 2 . . Terminal Hacks 24 | . 4 . 3 5 3 2 1 4 1 1 . . Record 11 | . 2 . 2 4 . 1 . 2 . . . . Open Door 2 | . . . . . 1 . . . 1 . . . Open DSF 1 | . . . . . . . . . . 1 . . Branch Access Points 1 | . . . . . . . . 1 . . . . Alert Level 1 | . . . 1 . . . . . . . . . Unreport Threat 1 | . . . . 1 . . . . . . . . Locate Traps 1 | . 1 . . . . . . . . . . . Reprogram Traps 1 | . 1 . . . . . . . . . . . Security Status 1 | . . . . . . . 1 . . . . . Extermination Status 1 | . . . . . . 1 . . . . . . Zone Layout 1 | . . . . . . . . 1 . . . . Garrison Registry 1 | . . . . . 1 . . . . . . . Patrol Navigation 1 | . . . . . 1 . . . . . . . Fabricator Hacks 2 | . . . . . . 2 . . . . . . Network Status 1 | . . . . . . 1 . . . . . . Build 1 | . . . . . . 1 . . . . . . Repair Station Hacks 17 | . 2 . 9 . . 2 . . . 4 . . Scan Component 10 | . 1 . 5 . . 2 . . . 2 . . Repair 7 | . 1 . 4 . . . . . . 2 . . Recycling Unit Hacks 11 | . . . 3 1 . 7 . . . . . . Recycle Component 2 | . . . . . . 2 . . . . . . Process 3 | . . . 1 . . 2 . . . . . . Report Inventory 3 | . . . 1 1 . 1 . . . . . . Retrieve Matter 3 | . . . 1 . . 2 . . . . . . Scanalyzer 2 | . . . . . . . . . . 2 . . Insert Component 1 | . . . . . . . . . . 1 . . Analyze 1 | . . . . . . . . . . 1 . . Garrison Access Hacks 3 | . . . . 1 . . . . . 2 . . Unlock Access 2 | . . . . 1 . . . . . 1 . . Coupler Status 1 | . . . . . . . . . . 1 . . Unauthorized Hacks . | . . . . . . . . . . . . . Terminals . | . . . . . . . . . . . . . Fabricators . | . . . . . . . . . . . . . Repair Stations . | . . . . . . . . . . . . . Recycling Units . | . . . . . . . . . . . . . Scanalyzers . | . . . . . . . . . . . . . Garrison Access . | . . . . . . . . . . . . . Data Cores Recovered . | . . . . . . . . . . . . . Used . | . . . . . . . . . . . . . Hacking Detections 22 | . 3 . 3 3 3 5 1 3 . 1 . . Full Trace Events 3 | . . . . . . 1 1 1 . . . . Feedback Events . | . . . . . . . . . . . . . Feedback Blocked . | . . . . . . . . . . . . . Robot Schematics Acquired . | . . . . . . . . . . . . . Robots Built . | . . . . . . . . . . . . . Authchips . | . . . . . . . . . . . . . Time . | . . . . . . . . . . . . . Total Robot Build Rating . | . . . . . . . . . . . . . Part Schematics Acquired 1 | . . . . . . . . . . 1 . . Parts Built 2 | . . . . . . 2 . . . . . . Authchips . | . . . . . . . . . . . . . Time 58 | . . . . . . 58 . . . . . . Total Part Build Rating 14 | . . . . . . 14 . . . . . . Parts Repaired 7 | . 1 . 4 . . . . . . 2 . . Time 267 | . 26 . 135 . . . . . . 106 . . Parts Recycled 2 | . . . . . . 2 . . . . . . Recycled Matter 131 | . . . 126 . . 5 . . . . . . Retrieved Matter 208 | . . . 203 . . 5 . . . . . . Retrieved Components . | . . . . . . . . . . . . . Parts Scanalyzed 1 | . . . . . . . . . . 1 . . Part Schematics Acquired 1 | . . . . . . . . . . 1 . . Parts Damaged . | . . . . . . . . . . . . . Bothacking | -11 -10 -9 -8 -7 -7 -7 -7 -6 -6 -5 -5 -5 ------------ Run | Yrd Mat Mat Mat Fac Gar Fac Sto Fac Ext Fac Upp War Used RIF Installer 1 | . . . . . 1 . . . . . . . Robots Hacked . | . . . . . . . . . . . . . Non-combat . | . . . . . . . . . . . . . Combat . | . . . . . . . . . . . . . Robot Hacks Applied . | . . . . . . . . . . . . . Relay Couplers Released 8 | . . . . . 8 . . . . . . . Machine Destruction 8 | . . . . . 8 . . . . . . . Attached 1 | . . . . . 1 . . . . . . . Fabnet Peak Effective % . | . . . . . . . . . . . . . Robots Rewired . | . . . . . . . . . . . . . Allies Hacked . | . . . . . . . . . . . . . Hacks Repelled . | . . . . . . . . . . . . . Allies | -11 -10 -9 -8 -7 -7 -7 -7 -6 -6 -5 -5 -5 -------- Run | Yrd Mat Mat Mat Fac Gar Fac Sto Fac Ext Fac Upp War Total Allies 2 | . . . . . 2 . . . . . . . Largest Group 2 | . . . . . 2 . . . . . . . Highest-Rated Group 51 | . . . . . 51 . . . . . . . Highest-Rated Ally 31 | . . . . . 31 . . . . . . . Total Orders . | . . . . . . . . . . . . . Ally Attacks 3 | . . . . . 3 . . . . . . . Total Damage 64 | . . . . . 64 . . . . . . . Kills . | . . . . . . . . . . . . . Allies Corrupted . | . . . . . . . . . . . . . Allies Melted . | . . . . . . . . . . . . . Intel | -11 -10 -9 -8 -7 -7 -7 -7 -6 -6 -5 -5 -5 ------- Run | Yrd Mat Mat Mat Fac Gar Fac Sto Fac Ext Fac Upp War Robot Analysis Total . | . . . . . . . . . . . . . Derelict Logs Recovered 1 | . . . . . . . . . . . 1 . Drone Launches . | . . . . . . . . . . . . . Drone Recoveries . | . . . . . . . . . . . . . Exploration | -11 -10 -9 -8 -7 -7 -7 -7 -6 -6 -5 -5 -5 ------------- Run | Yrd Mat Mat Mat Fac Gar Fac Sto Fac Ext Fac Upp War Turns Passed 14227 | 263 656 740 974 739 4870 1392 596 514 754 1909 563 257 Spaces Moved 5701 | 153 306 260 336 285 1812 500 203 202 151 909 442 142 Core 43 | 19 6 . . . . . . . 15 3 . . Treads 3901 | . 189 260 336 285 1812 500 203 202 114 . . . Legs 267 | 134 111 . . . . . . . . 22 . . Wheels 1490 | . . . . . . . . . 22 884 442 142 Hover . | . . . . . . . . . . . . . Flight . | . . . . . . . . . . . . . Fastest Speed 50 | 50 50 240 240 240 238 238 238 238 130 110 120 120 Average Speed 212 | 111 187 240 240 241 240 242 238 238 396 155 120 125 Slowest Speed 2250 | 120 320 240 240 242 243 247 238 238 2250 2200 120 138 Overloaded Moves . | . . . . . . . . . . . . . Propulsion Burnouts . | . . . . . . . . . . . . . Robots Hopped . | . . . . . . . . . . . . . Cave-ins Triggered . | . . . . . . . . . . . . . Exploration Rate (%) 30 | 11 51 31 30 9 86 17 45 6 28 20 45 17 Regions Visited 12 Branch Regions 4 Pre-discovered Areas . | . . . . . . . . . . . . . Known Exits Taken 10 | 1 1 1 1 1 . 1 1 1 1 1 . . Unknown Exits Taken 1 | . . . . . . . . . . . 1 . Scrap Searched 3 | . . . . . . . . . . . 3 . Spaces Dug 2 | . . . . . . . . . . 2 . . Terrain Destroyed 198 | . 1 . . . 11 33 27 1 4 120 . 1 Melee . | . . . . . . . . . . . . . Projectile 69 | . 1 . . . 8 12 27 1 4 15 . 1 AOE 129 | . . . . . 3 21 . . . 105 . . Terrain Rammed . | . . . . . . . . . . . . . Walls Destroyed . | . . . . . . . . . . . . . Machines Disabled . | . . . . . . . . . . . . . Actions | -11 -10 -9 -8 -7 -7 -7 -7 -6 -6 -5 -5 -5 --------- Run | Yrd Mat Mat Mat Fac Gar Fac Sto Fac Ext Fac Upp War Total 6698 | 240 356 306 405 314 2051 580 242 215 217 1145 462 165 Wait 66 | 54 . . . . 7 . . . 1 . 4 . Move 5686 | 152 305 259 335 284 1808 499 202 201 150 908 441 142 Hop . | . . . . . . . . . . . . . Pick Up 161 | 16 15 10 13 10 29 9 1 1 8 47 2 . Fast Attach 8 | 1 1 . . . 2 1 . . . 1 2 . Attach 78 | 8 7 4 8 2 8 1 . 2 14 23 1 . Detach 3 | . . . . . 1 . . . . 1 1 . Swap 116 | . 2 2 4 8 38 21 3 3 . 33 2 . Drop 90 | 5 7 . 1 2 35 8 4 . 3 21 4 . Fire 476 | 4 19 31 44 8 111 41 32 8 41 109 5 23 Melee . | . . . . . . . . . . . . . Ram 2 | . . . . . . . . . . 2 . . Kick . | . . . . . . . . . . . . . Crush . | . . . . . . . . . . . . . Escape Stasis 12 | . . . . . 12 . . . . . . . Rewire . | . . . . . . . . . . . . . Trap . | . . . . . . . . . . . . . Miscellaneous . | . . . . . . . . . . . . . Route ------- -11/Scrapyard -10/Materials (discovered 2 exits: *Mat / *Min) -9/Materials -8/Materials -7/Factory (discovered 3 exits: *Fac / *Low / Gar) -7/Garrison (discovered 3 exits: *Fac x3) -7/Factory -7/Storage -6/Factory (discovered 5 exits: *Fac / Low x2 / *Ext x2) -6/Extension -5/Factory (discovered 4 exits: *Fac x2 / *Upp / Gar) -5/Upper Caves -5/Warlord History --------- Turn | Location | Event 2 | -11/Scrapyard | Met Revision 17 78 | -11/Scrapyard | Identified exit to Materials 78 | -11/Scrapyard | Discovered exit to Materials (range 8) 264 | -11/Scrapyard | Entered Materials 264 | -10/Materials | Evolved 1 slot: Weapon x1 318 | -10/Materials | Build established: Hacker-Mutant 490 | -10/Materials | Identified exit to Mines 490 | -10/Materials | Discovered exit to Mines (range 11) 704 | -10/Materials | Build established: Hacker-Skirmisher 745 | -10/Materials | Repaired Lgt. Assault Rifle 904 | -10/Materials | Identified exit to Materials 904 | -10/Materials | Discovered exit to Materials (range 5) 920 | -10/Materials | Entered another Materials area 920 | -9/Materials | Evolved 2 slots: Propulsion x1, Utility x1 1573 | -9/Materials | Identified exit to Materials 1573 | -9/Materials | Discovered exit to Materials (range 3) 1660 | -9/Materials | Entered another Materials area 1660 | -8/Materials | Evolved 2 slots: Power x1, Propulsion x1 1708 | -8/Materials | Repaired EM Pulse Gun 1708 | -8/Materials | Repaired Hvy. Ion Engine 1740 | -8/Materials | Repaired Imp. Treads 1827 | -8/Materials | Garrison activated, responded to threat 2025 | -8/Materials | Identified exit to Factory 2025 | -8/Materials | Discovered exit to Factory (range 8) 2402 | -8/Materials | Repaired EM Pulse Gun 2634 | -8/Materials | Entered Factory 2634 | -7/Factory | Evolved 2 slots: Utility x1, Weapon x1 3058 | -7/Factory | Build established: Scavenger-Gunner 3191 | -7/Factory | Identified exit to Lower Caves 3191 | -7/Factory | Discovered exit to Lower Caves (range 10) 3203 | -7/Factory | Identified exit to Factory 3203 | -7/Factory | Discovered exit to Factory (range 8) 3344 | -7/Factory | Identified exit to Garrison 3373 | -7/Factory | Entered Garrison 3758 | -7/Garrison | Triggered checkpoint 3863 | -7/Garrison | Triggered checkpoint 4069 | -7/Garrison | Rescued a captive Derelict 4069 | -7/Garrison | Rescued a captive Derelict 4141 | -7/Garrison | Identified exit to Factory 4141 | -7/Garrison | Discovered exit to Factory (range 9) 4238 | -7/Garrison | Spotted B-75 Beast 4278 | -7/Garrison | Destroyed B-75 Beast 4487 | -7/Garrison | Attempted to access garrison exit controls, blocked by remote lockdown 4578 | -7/Garrison | Triggered checkpoint 4628 | -7/Garrison | Build established: Scavenger-Tank 4816 | -7/Garrison | Triggered checkpoint 4974 | -7/Garrison | Discovered exit to Factory (range 14) 5007 | -7/Garrison | Attempted to access garrison exit controls, blocked by remote lockdown 5087 | -7/Garrison | Spotted B-75 Beast 5100 | -7/Garrison | Destroyed B-75 Beast 5104 | -7/Garrison | Spotted B-75 Beast 5120 | -7/Garrison | Build established: Scavenger-Gunner 5144 | -7/Garrison | Destroyed B-75 Beast 5412 | -7/Garrison | Triggered checkpoint 5559 | -7/Garrison | Discovered exit to Factory (range 12) 5580 | -7/Garrison | Triggered checkpoint 5764 | -7/Garrison | Discovered exit to Factory (range 61) 5764 | -7/Garrison | Discovered exit to Factory (range 23) 5764 | -7/Garrison | Discovered exit to Factory (range 55) 6074 | -7/Garrison | Triggered checkpoint 6117 | -7/Garrison | Installed Relay Interface Framework 6427 | -7/Garrison | Garrison Relay disabled 6758 | -7/Garrison | Triggered checkpoint 6880 | -7/Garrison | Triggered checkpoint 7632 | -7/Garrison | Triggered checkpoint 7655 | -7/Garrison | Core integrity fell below 50% 7975 | -7/Garrison | Garrison Relay disabled 8243 | -7/Garrison | Entered Factory 9485 | -7/Factory | Core integrity fell below 20% 9502 | -7/Factory | Fabricated Imp. System Guard (x2) 9567 | -7/Factory | Identified exit to Storage 9567 | -7/Factory | Discovered exit to Storage (range 16) 9635 | -7/Factory | Entered Storage 10195 | -7/Storage | Discovered exit to Factory (range 16) 10231 | -7/Storage | Entered Factory 10231 | -6/Factory | Evolved 2 slots: Power x1, Utility x1 10533 | -6/Factory | Identified exit to Factory 10533 | -6/Factory | Discovered exit to Factory (range 15) 10654 | -6/Factory | Identified exit to Lower Caves 10654 | -6/Factory | Identified exit to Extension 10745 | -6/Factory | Entered Extension 10949 | -6/Extension | Build established: Hacker-Gunner 10980 | -6/Extension | Spotted B-75 Beast 11004 | -6/Extension | Destroyed B-75 Beast 11024 | -6/Extension | Spotted B-75 Beast 11112 | -6/Extension | Destroyed B-75 Beast 11138 | -6/Extension | Lost 11 parts (4p3n1u3w) 11470 | -6/Extension | Disrupted transfer network 11497 | -6/Extension | Discovered exit to Factory (range 3) 11499 | -6/Extension | Entered Factory 11499 | -5/Factory | Evolved 2 slots: Utility x1, Weapon x1 11623 | -5/Factory | Repaired KE Penetrator 11677 | -5/Factory | Repaired Plasma Rifle 11762 | -5/Factory | Build established: Scavenger-Tank 11821 | -5/Factory | Identified exit to Factory 11821 | -5/Factory | Discovered exit to Factory (range 15) 11838 | -5/Factory | Garrison activated, responded to threat 12031 | -5/Factory | Identified exit to Garrison 12356 | -5/Factory | Cargo convoy interrupted 12373 | -5/Factory | Discovered exit to Factory (range 10) 12394 | -5/Factory | System corruption reached 10% 12430 | -5/Factory | Lost 6 parts (2n3u1w) 12512 | -5/Factory | Garrison activated, responded to threat 12860 | -5/Factory | Lost 3 parts (1p2w) 13201 | -5/Factory | Build established: Scavenger-Gunner 13361 | -5/Factory | Lost 3 parts (2n1w) 13365 | -5/Factory | Identified exit to Upper Caves 13365 | -5/Factory | Discovered exit to Upper Caves (range 15) 13408 | -5/Factory | Entered Upper Caves 13409 | -5/Upper Caves | Encountered a Warlord checkpoint 13417 | -5/Upper Caves | Attracted the attention of an 0b10 checkpoint 13593 | -5/Upper Caves | Learned location of 1 exit from Factory 13910 | -5/Upper Caves | A Derelict revealed a hidden shortcut to "reach the base" 13971 | -5/Upper Caves | Entered Warlord 14016 | -5/Warlord | System corruption cleaned by Quarantine Array 14022 | -5/Warlord | RIF detected upon attempting to enter Warlord's base 14022 | -5/Warlord | Attacked by Warlord forces 14046 | -5/Warlord | Spotted 1C-IXN(B) 14046 | -5/Warlord | Spotted FU-D9I(B) 14047 | -5/Warlord | Core integrity fell below 50% 14060 | -5/Warlord | Destroyed FU-D9I(B) 14121 | -5/Warlord | Core integrity fell below 20% 14191 | -5/Warlord | Warlord's base attacked by MAIN.C 14199 | -5/Warlord | Destroyed 1C-IXN(B) 14229 | -5/Warlord | Core destroyed Last Messages --------------- System Quarantine Field Array disabled. Power failure, Lgt. Angular Momentum Engine shutdown. Power failure, Neutrino Core shutdown. Overheating: Wheel damaged (-13). Slug penetrates ED-494(p). Overheating: Wheel damaged (-4). Power failure, Neutrino Core shutdown. Overheating: System interference. KE Penetrator temporarily disabled. ED-494(p) destroyed. Power failure, Lgt. Angular Momentum Engine shutdown. Overheating: Energy bleed (-48). Adv. Shield Generator destroyed. Power failure, Neutrino Core shutdown. Overheating: Core damaged (-200). [Achievement: First Step to Greatness] [Achievement: 5k Club] [Achievement: 10k Club] Map ----- +----------------------------------------------------+ | ?????????????????????????????????????????????????? | | ?????????????????????????????????????????????????? | | ?????????????????????????????????????????????????? | | ?????????????????????????????????????????????????? | | ?????????????????????????????????????????????????? | | ?????????????????????????????????????????????????? | | ??????????????????????????????????????????????##?? | | ????????????????????????????????????????????### ?? | | ????????????????????????????????????????? ?? ?? | | ????????????#????????????????????????????? ### ?? | | ????????????# ???????????????????????????? ?? | | ????????????# ?????????????????????????????# #? | | ????????????+ ????????""??????????????????# ? | | ????????????# ???????#""???????????????????# # | | ????????????# ??????#""#???????????????????# | | ?????????#### #######""#####????????????????# ^ | | ?????????# # "" ############??????# | | ?????????# # "" """""""""""#???????# | | ?????## ## # "" """"""""""""#?####?## | | ????? % ;^ ^ ^ ### ### | | ???? [ ;^% [^% + | | ???? ;^ !%= Y + # | | ???? Y^ ! !%[ #### ## | | ????????#"% ;% ""pp """"""""""""#??## #? | | ????????## %; "" """""""""""#???# #? | | ?????????# # ""@ %"############???# ### | | ?????????#### ##?###;""#####??????????????# #?# | | ????????????# ?????##""#?????????????????? ### | | ????????????# ???????#""#????????????????? ### | | ????????????# ????????#""#????????????????? ##?# | | ????????????#?????????#""#???????????????? ???## | | ?????????????????????????????????????????# ????# | | ?????????????????????????????????????????# #????? | | ?????????????????????????????????????????# ?????? | | ?????????????????????????????????????????# ?????? | | ?????????????????????????????????????????? ??????# | | ?????????????????????????????????????????????????# | | ?????????????????????????????????????????????????# | | ?????????????????????????????????????????????????# | | ?????????????????????????????????????????????????# | | ?????????????????????????????????????????????????# | | ?????????????????????????????????????????????????? | | ?????????????????????????????????????????????????? | | ?????????????????????????????????????????????????? | | ?????????????????????????????????????????????????? | | ?????????????????????????????????????????????????? | | ?????????????????????????????????????????????????? | | ?????????????????????????????????????????????????? | | ?????????????????????????????????????????????????? | | ?????????????????????????????????????????????????? | +----------------------------------------------------+ Best States ------------- Heat Dissipation 94 Energy Generation 53 Energy Capacity 645 Matter Stores 300 Matter Capacity 300 Sight Range 18 Robot Scan Range 14 Terrain Scan Density 110 ECM Strength 2 Corruption Containment 12 Armor Coverage 150 Resistance: KI 60 Resistance: TH 35 Resistance: EX 35 Resistance: EM 35 Resistance: I 35 Resistance: S 35 Resistance: P 35 Core Shielding 20 Weapon Shielding 33 Point Defense Rating 80 Weapon Cycling 20 Evasion (%) 55 Targeting Accuracy 5 Core Analysis 6 Recoil Reduction 4 Offensive Hacking 30 Relay Coupler Types 1 Relay Coupler Value 34 Item Schematics ----------------- Imp. Titanium Leg | -5/Factory | Scanalyzed Robot Schematics ------------------ None Fabricated ------------ Imp. System Guard | x2 | -7/Factory | Preloaded Alien Tech Used ----------------- None Achievements -------------- 10k Club 5k Club Can't Touch This Crack Shot Everything Is Under Control First Step to Greatness Giant Slayer Gun Specialist It's Just You Just What I Needed Knowing Is Half The Battle Librarian Loot Pinata Made in Tau Ceti IV One Hack Too Far Oops Part-time Mechanic Please Form A Line Power Corrupts Risk Taker Safety First Serviceable Loadout Storm Trooper System Compromised Tank Tourist Troublemaker Uninvited Guest Challenges ------------ None Game ------ Seed PoweredMiniMallet Manual? 0 Play Time 03:09:06 Cumulative 3.1 hours Start 2024.03.31 @ 09:11:21 End 2024.03.31 @ 12:35:01 Sessions 1 Manual Loads 0 Difficulty Explorer Special Mode None Game No. 1 Rogue 0 Adventurer 0 Explorer 1 Win Type - Total 0 Types 0/0/0/0/0/0/0/0/0 Lore% 1 Gallery% 6 Achievement% 10 Wizard Run 0 Options --------- Layout 1 ASCII 0 Keyboard 0 Movement Mouse Keybinds 0 Fullscreen 1 Font 24/Smallcaps Map View 50x35 Zoom Use 0% Tactical HUD 0 Map Filters NONE Filters NONE Steam 1 RUN: 3cd88f02-0f34-4561-9023-73449dbce161